bitfinex/quotes_ETHUSD_20220308
["timestamp","ask_amount","ask_price","bid_price","bid_amount"]
[1646735604583,0.01832136,2581.0,2580.7,2.14602721]
[1646735604986,0.00472171,2580.9,2580.7,2.14602721]
[1646735605984,0.01832136,2581.0,2580.7,2.14602721]
[1646735606185,0.00472171,2580.9,2580.7,2.14602721]
[1646735607086,0.01832136,2581.0,2580.8,6.08697718]
[1646735607286,0.01832136,2581.0,2580.8,1.00668238]
[1646735607490,0.0044296,2580.9,2580.8,1.00668238]
[1646735607689,0.0044296,2580.9,2580.8,2.58700526]
[1646735607891,0.0044296,2580.9,2580.8,1.00668238]
[1646735608339,0.01832136,2581.0,2580.8,1.00532218]
[1646735608541,0.02275096,2581.0,2580.8,1.00532218]
[1646735609145,0.02275096,2581.0,2580.9,4.50532218]
[1646735609341,0.02275096,2581.0,2580.8,1.00532218]
[1646735609542,0.01832136,2581.0,2580.8,1.00532218]
[1646735609842,0.02275096,2581.0,2580.9,6.08564132]
[1646735610442,0.02275096,2581.0,2580.9,1.00532218]
[1646735610642,0.01832136,2581.0,2580.9,1.00532218]
[1646735613490,0.01832136,2581.0,2580.8,1.00532218]
[1646735613691,0.01832136,2581.0,2580.9,2.58567456]
[1646735617949,0.01832136,2581.0,2580.9,6.08567456]
[1646735621387,0.01832136,2581.0,2580.9,6.47407456]
[1646735621990,0.01832136,2581.0,2580.9,6.08567456]
[1646735622787,0.01832136,2581.0,2580.9,6.47407456]
[1646735622987,0.01832136,2581.0,2580.9,18.34407456]
[1646735623244,0.00399139,2581.1,2581.0,6.54196489]
[1646735623443,0.01842163,2581.1,2581.0,6.12231727]
[1646735623841,0.01842163,2581.1,2581.0,2.62231727]
[1646735623842,0.01443024,2581.1,2581.0,2.62231727]
[1646735627895,0.01443024,2581.1,2581.0,1.04196489]
[1646735632236,0.01443024,2581.1,2581.0,0.03664271]
[1646735633044,0.01443024,2581.1,2581.0,2.62222149]
[1646735634788,0.01443024,2581.1,2581.0,6.12222149]
[1646735635190,7.29,2581.5,2581.3,1.00532218]
[1646735635191,2.24041566,2581.5,2581.3,1.00532218]
[1646735635392,0.0093384,2581.5,2581.3,1.00532218]
[1646735636290,0.0093384,2581.5,2581.4,1.00532218]
[1646735636491,0.0093384,2581.5,2581.0,0.03664271]
[1646735636492,0.00191034,2581.8,2581.6,1.00532218]
[1646735636691,0.03744186,2581.8,2581.6,1.00532218]
[1646735636893,1.00644186,2581.8,2581.6,1.00532218]
[1646735638744,1.00644186,2581.8,2581.5,0.83193971]
[1646735639744,1.01115359,2581.8,2581.5,0.83193971]
[1646735640144,1.01115359,2581.8,2581.2,3.5]
[1646735640344,1.01115359,2581.8,2581.0,1.24604271]
[1646735640647,1.00644186,2581.8,2581.1,1.58014821]
[1646735641250,0.97374173,2581.6,2581.3,0.89180633]
[1646735642096,0.96903,2581.6,2581.3,0.89180633]
[1646735642284,1.00927325,2581.6,2581.3,0.89180633]
[1646735643091,1.00456152,2581.6,2581.3,0.89180633]
[1646735643289,1.00927325,2581.6,2581.3,0.89180633]
[1646735644391,1.00456152,2581.6,2581.3,0.89180633]
[1646735644590,1.00927325,2581.6,2581.3,0.89180633]
[1646735645648,1.00599122,2581.6,2581.3,0.89180633]
[1646735646438,0.03696122,2581.6,2581.3,0.89180633]
[1646735646636,0.03553152,2581.6,2581.3,0.89180633]
[1646735647035,0.04024325,2581.6,2581.3,0.89180633]
[1646735647436,0.04024325,2581.6,2581.4,1.58007069]
[1646735648036,0.03553152,2581.6,2581.4,1.58007069]
[1646735648241,0.04024325,2581.6,2581.4,1.58007069]
[1646735648441,0.04024325,2581.6,2581.5,3.5]
[1646735648643,0.04024325,2581.6,2581.5,5.08007069]
[1646735649052,0.0283227,2581.9,2581.6,0.08048649]
[1646735649242,0.0283227,2581.9,2581.8,0.97788854]
[1646735649487,0.0283227,2581.9,2581.8,2.55795923]
[1646735650790,0.0283227,2581.9,2581.8,3.34280055]
[1646735651894,0.0283227,2581.9,2581.6,0.86532781]
[1646735652794,0.006344,2581.8,2581.6,0.86532781]
[1646735652994,0.006344,2581.8,2581.7,0.78484132]
[1646735653444,0.975264,2581.8,2581.7,0.78484132]
[1646735654942,0.975264,2581.8,2581.6,0.08048649]
[1646735657899,0.97997058,2581.8,2581.6,0.08048649]
[1646735658098,0.97997058,2581.8,2581.7,2.36476122]
[1646735658700,0.975264,2581.8,2581.7,2.36476122]
[1646735658901,0.975264,2581.8,2581.7,3.44393567]
[1646735660943,0.006344,2581.8,2581.7,3.44393567]
[1646735661146,0.96882,2582.2,2581.9,0.78484132]
[1646735661349,0.0193884,2582.3,2582.1,6.28484132]
[1646735661544,0.0193884,2582.3,2582.2,8.25316122]
[1646735661545,0.03859189,2582.3,2582.2,8.25316122]
[1646735661742,0.03859189,2582.3,2582.2,20.12316122]
[1646735661943,0.03859189,2582.3,2582.2,2.36476122]
[1646735662146,0.03859189,2582.3,2582.2,0.78484132]
[1646735662343,0.0197684,2582.3,2582.2,0.78484132]
[1646735667292,0.0197684,2582.3,2581.8,0.78484132]
[1646735667491,5.4573784,2582.3,2581.8,0.78484132]
[1646735667692,0.466,2582.2,2581.8,0.78484132]
[1646735668145,0.766,2582.2,2581.8,0.78484132]
[1646735668339,0.766,2582.2,2581.9,0.78484132]
[1646735668340,0.4857684,2582.2,2581.9,0.78484132]
[1646735668739,0.00470166,2582.1,2581.9,0.78484132]
[1646735669339,0.00470166,2582.1,2582.0,0.78484132]
[1646735669539,0.0197684,2582.1,2582.0,0.78484132]
[1646735671343,0.0197684,2582.1,2581.9,0.78484132]
[1646735672387,0.0197684,2582.1,2581.8,0.98793641]
[1646735672388,0.02447686,2582.1,2582.0,0.78484132]
[1646735673190,0.0197684,2582.1,2582.0,0.78484132]
[1646735673391,0.0197684,2582.1,2581.6,0.86532781]
[1646735673595,0.9886884,2582.1,2581.6,0.86532781]
[1646735674194,0.9886884,2582.1,2581.6,4.36532781]
[1646735674393,0.9886884,2582.1,2581.6,0.86532781]
[1646735674594,0.00470837,2582.0,2581.6,0.86532781]
[1646735675298,0.00470837,2582.0,2581.9,1.80216275]
[1646735675495,0.0197684,2582.0,2581.8,0.78484132]
[1646735675939,0.02396215,2582.0,2581.8,0.78484132]
[1646735676746,0.0197684,2582.0,2581.8,0.78484132]
[1646735676941,0.02396231,2582.0,2581.8,0.78484132]
[1646735677142,0.99288231,2582.0,2581.8,0.78484132]
[1646735677947,0.0197684,2582.0,2581.8,0.78484132]
[1646735678348,0.02396231,2582.0,2581.8,0.78484132]
[1646735679151,0.0197684,2582.0,2581.9,4.28484132]
[1646735679387,0.0281116,2582.5,2582.2,0.78484132]
[1646735679388,1.98228917,2582.5,2582.2,0.78484132]
[1646735679589,1.98132917,2582.5,2582.2,0.78484132]
[1646735680386,2.95003917,2582.5,2582.0,0.03953679]
[1646735680591,2.9330416,2582.5,2582.0,0.03953679]
[1646735680789,3.23729177,2582.5,2582.0,0.03953679]
[1646735680994,1.93734,2582.4,2582.0,0.03953679]
[1646735681391,2.23734,2582.4,2582.0,0.03953679]
[1646735681793,0.96884,2582.3,2582.0,0.82437811]
[1646735681992,3.37277,2582.3,2582.0,0.82437811]
[1646735682893,3.37277,2582.3,2582.0,0.03953679]
[1646735683151,4.34571843,2582.3,2582.0,0.03953679]
[1646735683342,5.54128594,2582.3,2582.0,0.03953679]
[1646735683945,5.53734751,2582.3,2582.0,0.03953679]
[1646735684445,5.54128594,2582.3,2582.0,0.03953679]
[1646735684645,3.57227594,2582.3,2582.0,0.03953679]
[1646735685247,3.37277,2582.3,2582.0,0.03953679]
[1646735685446,3.37670843,2582.3,2582.0,0.03953679]
[1646735685847,2.91070843,2582.3,2582.0,0.03953679]
[1646735686547,2.90677,2582.3,2582.0,0.03953679]
[1646735686752,2.91075352,2582.3,2582.0,0.03953679]
[1646735686992,2.91075352,2582.3,2582.2,0.78484132]
[1646735686993,1.94191352,2582.3,2582.2,0.78484132]
[1646735687191,1.94191352,2582.3,2582.2,2.36477362]
[1646735687691,0.96866,2582.4,2582.2,2.36477362]
[1646735687891,0.97264352,2582.4,2582.3,0.78484132]
[1646735688696,0.96866,2582.4,2582.3,0.78484132]
[1646735688896,0.96866,2582.4,2582.0,0.03953679]
[1646735689099,0.96866,2582.4,2582.2,0.78484132]
[1646735689497,1.26866,2582.4,2582.2,0.78484132]
[1646735689896,1.26866,2582.4,2582.3,0.78484132]
[1646735690299,0.9727617,2582.4,2582.3,4.28484132]
[1646735690497,0.9727617,2582.4,2582.3,0.78484132]
[1646735691149,0.9727617,2582.4,2582.3,2.36467394]
[1646735691349,0.96866,2582.4,2582.3,2.36467394]
[1646735692050,0.96866,2582.4,2582.3,0.78484132]
[1646735694050,0.96866,2582.4,2582.3,5.86469916]
[1646735694251,0.02856029,2582.5,2582.3,2.36469916]
[1646735694491,0.02856029,2582.5,2582.3,0.78484132]
[1646735694895,0.0271516,2582.5,2582.3,0.78484132]
[1646735695094,0.0271516,2582.5,2582.4,0.78484132]
[1646735696897,1.0271516,2582.5,2582.4,0.78484132]
[1646735697299,0.0271516,2582.5,2582.4,0.78484132]
[1646735699143,0.0271516,2582.5,2582.2,0.2306]
[1646735699345,0.9959716,2582.5,2582.2,0.2306]
[1646735699749,0.9959716,2582.5,2582.2,0.2294765]
[1646735699946,1.00066044,2582.5,2582.2,0.2294765]
[1646735700947,0.9959716,2582.5,2582.2,0.2294765]
[1646735701145,1.96938044,2582.5,2582.2,0.2294765]
[1646735701646,2.26938044,2582.5,2582.2,0.2294765]
[1646735702094,2.2646916,2582.5,2582.2,0.2294765]
[1646735702295,2.26609899,2582.5,2582.0,0.03953679]
[1646735702495,2.13113,2582.4,2582.0,0.03953679]
[1646735703298,1.93763,2582.4,2582.0,0.03953679]
[1646735703497,0.00131307,2582.3,2582.0,0.03953679]
[1646735703697,1.93885307,2582.3,2582.0,0.03953679]
[1646735703902,1.93885307,2582.3,2582.1,0.78484132]
[1646735704098,1.93885307,2582.3,2582.2,4.28484132]
[1646735704099,0.00131307,2582.3,2582.2,4.28484132]
[1646735704297,0.00131307,2582.3,2582.2,5.86484329]
[1646735704500,0.0271516,2582.5,2582.2,5.86484329]
[1646735704698,0.0271516,2582.5,2582.4,0.78484132]
[1646735704898,0.9956916,2582.5,2582.4,5.86484329]
[1646735705098,0.9956916,2582.5,2582.4,2.36484329]
[1646735705297,0.9956916,2582.5,2582.4,3.32545017]
[1646735705500,0.0271516,2582.5,2582.4,6.82545017]
[1646735705754,0.0271516,2582.5,2582.4,3.32545017]
[1646735707058,0.0271516,2582.5,2582.4,2.36484329]
[1646735707657,0.0271516,2582.5,2582.0,0.03530279]
[1646735707855,0.0271516,2582.5,2582.2,0.78484132]
[1646735707856,0.9958416,2582.5,2582.2,0.78484132]
[1646735708056,0.9958416,2582.5,2582.4,0.78484132]
[1646735708259,0.9958416,2582.5,2582.4,2.36464613]
[1646735715547,1.24812414,2582.5,2582.2,0.78484132]
[1646735715846,1.24812414,2582.5,2582.4,0.78484132]
[1646735715847,0.9958416,2582.5,2582.4,0.78484132]
[1646735716046,1.25376281,2582.5,2582.4,0.78484132]
[1646735716746,1.25376281,2582.5,2582.0,0.03530279]
[1646735716747,3.19141281,2582.5,2582.0,0.03530279]
[1646735716991,1.93766,2582.4,2582.2,0.78484132]
[1646735717195,0.25483776,2582.3,2582.2,0.78484132]
[1646735717590,0.25483776,2582.3,2582.0,0.03530279]
[1646735717991,1.22369776,2582.3,2582.0,0.03530279]
[1646735718394,1.22369776,2582.3,2582.2,0.78484132]
[1646735718395,1.93772,2582.3,2582.2,0.78484132]
[1646735718596,0.96886,2582.3,2582.0,0.03530279]
[1646735718795,0.96886,2582.3,2582.2,0.78484132]
[1646735719298,0.97282638,2582.3,2582.2,0.78484132]
[1646735719697,0.97282638,2582.3,2582.0,0.03530279]
[1646735719896,0.97282638,2582.3,2582.2,0.78484132]
[1646735720101,2.90639,2582.4,2582.2,0.78484132]
[1646735720397,2.91035638,2582.4,2582.2,0.78484132]
[1646735720649,2.91035638,2582.4,2582.0,0.03530279]
[1646735720838,2.91035638,2582.4,2582.2,0.78484132]
[1646735721240,0.96875,2582.3,2582.2,0.78484132]
[1646735721443,0.97271638,2582.3,2582.2,0.78484132]
[1646735722043,0.97271638,2582.3,2582.2,2.36462205]
[1646735722044,0.00396638,2582.3,2582.2,2.36462205]
[1646735722449,1.60399647,2582.5,2582.2,2.36462205]
[1646735722645,0.0039662,2582.4,2582.2,0.78484132]
[1646735723645,2.57264647,2582.5,2582.2,0.78484132]
[1646735723844,0.0039662,2582.4,2582.2,0.78484132]
[1646735724044,0.0039662,2582.4,2582.3,0.78484132]
[1646735724996,3.54142647,2582.5,2582.3,0.78484132]
[1646735725195,3.54539267,2582.5,2582.4,0.78484132]
[1646735725999,3.54142647,2582.5,2582.4,0.78340386]
[1646735727100,2.57264647,2582.5,2582.4,0.78340386]
[1646735728865,1.60399647,2582.5,2582.4,0.78340386]
[1646735729066,1.60399647,2582.5,2582.0,0.81870665]
[1646735729264,1.60399647,2582.5,2582.4,0.78340386]
[1646735730167,1.60399647,2582.5,2582.0,0.03530279]
[1646735730564,1.60399647,2582.5,2582.2,0.78340386]
[1646735731265,1.60399647,2582.5,2582.0,0.81870665]
[1646735731266,0.00396614,2582.4,2582.0,0.81870665]
[1646735731466,0.97277614,2582.4,2582.2,0.78340386]
[1646735732090,0.96881,2582.4,2582.2,0.78340386]
[1646735732295,0.97277614,2582.4,2582.3,0.78340386]
[1646735733297,0.96881,2582.4,2582.3,0.78340386]
[1646735735302,0.96881,2582.4,2582.0,0.81870665]
[1646735735499,0.96881,2582.4,2582.2,0.78340386]
[1646735735746,1.96881,2582.4,2582.2,0.78340386]
[1646735736551,1.96881,2582.4,2582.3,0.78340386]
[1646735737151,1.9727762,2582.4,2582.3,0.78340386]
[1646735738052,1.96881,2582.4,2582.3,0.78340386]
[1646735738252,1.81881,2582.4,2582.3,0.78340386]
[1646735741212,5.31881,2582.4,2582.3,0.78340386]
[1646735741413,1.81881,2582.4,2582.3,0.78340386]
[1646735741814,5.51437751,2582.4,2582.3,0.78340386]
[1646735742513,2.48037751,2582.4,2582.3,0.78340386]
[1646735743850,2.48037751,2582.4,2581.8,0.78340386]
[1646735744051,1.93798,2582.3,2582.0,0.78340386]
[1646735744252,3.87603,2582.3,2582.0,0.78340386]
[1646735744850,3.87603,2582.3,2582.1,0.78340386]
[1646735745051,3.87603,2582.3,2581.2,2.3595]
[1646735745052,4.16156751,2582.2,2581.2,2.3595]
[1646735745252,4.16156751,2582.2,2581.4,1.159]
[1646735745253,0.96922,2582.0,2581.4,1.159]
[1646735745558,1.93847,2581.7,2581.4,1.159]
[1646735745753,2.70447,2581.7,2581.4,1.159]
[1646735745952,2.90003751,2581.7,2581.5,1.159]
[1646735746752,2.60003751,2581.7,2581.5,1.159]
[1646735746995,1.0,2581.6,2581.5,1.159]
[1646735748200,1.0,2581.6,2581.5,1.15266487]
[1646735748599,1.03333357,2581.7,2581.5,1.15266487]
[1646735748800,1.0,2581.6,2581.5,1.15266487]
[1646735750100,0.56733357,2581.7,2581.6,1.15266487]
[1646735750300,0.766,2582.0,2581.6,1.15266487]
[1646735750301,0.00096,2581.9,2581.6,1.15266487]
[1646735750499,0.00397408,2582.0,2581.6,1.15266487]
[1646735750952,0.00397408,2582.0,2581.7,1.15266487]
[1646735751152,0.970038,2582.2,2581.7,1.15266487]
[1646735751348,0.969078,2582.2,2581.7,1.15266487]
[1646735751554,0.00396455,2582.0,2581.7,1.15266487]
[1646735751750,0.30396455,2582.0,2581.7,1.15266487]
[1646735751951,0.30396455,2582.0,2581.8,1.15266487]
[1646735752150,0.00396455,2582.0,2581.8,1.15266487]
[1646735752351,1.0,2581.9,2581.8,1.15266487]
[1646735752553,1.19556751,2581.9,2581.8,1.15266487]
[1646735752752,0.19556751,2581.9,2581.8,1.15266487]
[1646735752955,0.19556751,2581.9,2581.3,1.15266487]
[1646735753156,0.96913,2581.8,2581.3,1.15266487]
[1646735753359,1.0,2581.7,2581.3,1.15266487]
[1646735753555,0.96913,2581.8,2581.3,1.15266487]
[1646735753756,0.466,2581.7,2581.3,1.15266487]
[1646735753955,1.0,2581.4,2581.3,1.15266487]
[1646735754801,1.43522,2581.7,2581.3,1.15266487]
[1646735755002,1.19556751,2581.8,2581.4,1.15266487]
[1646735755203,1.78247097,2581.8,2581.4,1.15266487]
[1646735755603,0.96916,2581.7,2581.4,1.15266487]
[1646735756006,1.0,2581.4,2581.0,1.15266487]
[1646735756205,1.0,2581.4,2581.2,1.15266487]
[1646735757005,1.0,2581.4,2580.8,1.1978]
[1646735757006,1.0,2581.4,2580.9,1.15266487]
[1646735757207,1.0,2581.4,2580.8,1.1978]
[1646735757208,1.0,2581.4,2581.1,1.15266487]
[1646735759546,1.0,2581.4,2580.9,1.15266487]
[1646735759749,1.0,2581.4,2581.1,1.15266487]
[1646735760548,0.96924,2581.5,2581.1,1.15266487]
[1646735762592,0.96924,2581.5,2580.9,1.15266487]
[1646735762792,0.96924,2581.5,2580.8,1.1978]
[1646735762793,0.96924,2581.5,2581.1,1.15266487]
[1646735762994,2.90776,2581.7,2581.1,1.15266487]
[1646735763197,3.71640876,2581.8,2581.3,1.15266487]
[1646735763198,1.77800346,2581.8,2581.3,1.15266487]
[1646735763397,0.58690346,2581.8,2581.3,1.15266487]
[1646735763597,0.58690346,2581.8,2581.4,1.15266487]
[1646735763999,0.58690346,2581.8,2581.5,1.12282418]
[1646735764200,0.58690346,2581.8,2581.6,1.15266487]
[1646735766955,1.21796,2582.3,2581.8,1.15266487]
[1646735767156,1.21796,2582.3,2581.5,1.51122418]
[1646735767159,0.00396582,2582.0,2581.9,1.15266487]
[1646735767955,0.00396582,2582.0,2581.9,2.20407923]
[1646735768156,0.60399647,2582.5,2581.9,2.20407923]
[1646735768356,0.00396613,2582.1,2581.9,2.20407923]
[1646735769393,1.0,2582.2,2581.9,2.20407923]
[1646735769593,0.60399647,2582.5,2581.9,2.20407923]
[1646735770495,1.0,2582.3,2581.9,2.20407923]
[1646735771101,0.96886,2582.4,2581.9,2.20407923]
[1646735772200,1.0,2582.3,2581.9,2.20407923]
[1646735772602,1.0,2582.3,2581.7,0.1372515]
[1646735773002,4.5,2582.3,2581.7,0.13592288]
[1646735773263,1.4397951,2582.2,2581.7,0.13592288]
[1646735773466,0.9691,2582.1,2581.7,0.13592288]
[1646735773662,0.466,2582.0,2581.7,0.13592288]
[1646735774064,0.466,2582.0,2581.6,1.18671808]
[1646735774268,0.4706951,2582.0,2581.6,1.18671808]
[1646735775266,0.466,2582.0,2581.6,1.18671808]
[1646735775466,0.47069492,2582.0,2581.6,1.18671808]
[1646735776565,0.466,2582.0,2581.6,0.03405321]
[1646735776769,0.47069492,2582.0,2581.6,0.03405321]
[1646735777599,0.466,2582.0,2581.6,0.03405321]
[1646735778000,0.47069492,2582.0,2581.6,0.03405321]
[1646735778402,0.77069492,2582.0,2581.6,0.03405321]
[1646735779003,0.766,2582.0,2581.6,0.03405321]
[1646735779203,0.77069492,2582.0,2581.8,0.10290891]
[1646735779407,0.47069492,2582.0,2581.8,0.10290891]
[1646735780104,0.466,2582.0,2581.8,0.10290891]
[1646735780306,0.4706951,2582.0,2581.8,0.10290891]
[1646735781343,0.466,2582.0,2581.8,0.10290891]
[1646735781541,0.4706951,2582.0,2581.8,0.10290891]
[1646735782341,0.466,2582.0,2581.8,0.10290891]
[1646735782742,0.4706951,2582.0,2581.8,0.10290891]
[1646735783646,0.466,2582.0,2581.8,0.10290891]
[1646735783846,0.4706951,2582.0,2581.8,0.10290891]
[1646735784894,0.466,2582.0,2581.9,0.0679068]
[1646735785095,0.4706951,2582.0,2581.9,0.0679068]
[1646735786096,0.466,2582.0,2581.9,0.0679068]
[1646735788345,3.966,2582.0,2581.9,0.0679068]
[1646735788545,0.466,2582.0,2581.9,0.0679068]
[1646735789545,0.466,2582.0,2581.9,0.14073633]
[1646735790747,3.966,2582.0,2581.9,0.07293633]
[1646735791148,4.966,2582.0,2581.9,0.07293633]
[1646735792595,1.466,2582.0,2581.9,0.07293633]
[1646735794404,1.466,2582.0,2581.9,0.07362588]
[1646735797650,1.466,2582.0,2581.9,0.0722593]
[1646735799048,1.466,2582.0,2581.9,0.13608227]
[1646735805849,0.466,2582.0,2581.9,0.13608227]
[1646735806893,0.0001,2582.0,2581.9,0.13608227]
[1646735807096,0.03279794,2582.5,2582.1,1.54106487]
[1646735807396,0.03279794,2582.5,2582.4,0.01278018]
[1646735807593,0.0271516,2582.5,2582.4,5.05384505]
[1646735807793,0.0271516,2582.5,2582.4,4.00635638]
[1646735807996,0.0271516,2582.5,2582.4,4.6108856]
[1646735808197,0.0271516,2582.5,2582.4,3.6051762]
[1646735808397,0.0271516,2582.5,2582.4,2.02536487]
[1646735809399,0.0271516,2582.5,2582.4,1.15266487]
[1646735809800,0.0271516,2582.5,2582.4,1.54106487]
[1646735810002,0.0271516,2582.5,2582.4,4.65266487]
[1646735810207,0.0271516,2582.5,2582.4,6.62061451]
[1646735810660,1.9882547,2583.6,2583.1,1.15266487]
[1646735810848,0.04149456,2583.2,2583.1,1.15266487]
[1646735811446,0.63123963,2583.2,2583.1,1.15266487]
[1646735818949,0.63123963,2583.2,2583.1,1.28409461]
[1646735819150,0.63123963,2583.2,2583.1,1.26359461]
[1646735820654,0.63123963,2583.2,2583.1,4.76359461]
[1646735820853,0.63123963,2583.2,2583.1,1.26359461]
[1646735821903,0.63123963,2583.2,2583.1,4.76359461]
[1646735822100,0.63123963,2583.2,2583.1,1.26359461]
[1646735822300,0.63123963,2583.2,2583.1,1.65199461]
[1646735822700,0.63123963,2583.2,2583.1,5.15199461]
[1646735823000,0.63123963,2583.2,2583.1,1.26359461]
[1646735823803,0.63123963,2583.2,2583.1,4.76359461]
[1646735824004,0.63123963,2583.2,2583.1,1.26359461]
[1646735824805,0.63123963,2583.2,2583.1,1.30358814]
[1646735829395,0.63123963,2583.2,2583.1,1.35351772]
[1646735830803,1.3875,2583.3,2583.1,5.24191772]
[1646735830804,0.39217397,2583.3,2583.1,5.24191772]
[1646735831003,0.39217397,2583.3,2583.1,1.74191772]
[1646735831004,0.01859584,2583.2,2583.1,1.74191772]
[1646735831205,0.01859584,2583.2,2583.1,5.24191772]
[1646735832403,0.01426284,2583.5,2583.3,13.41106487]
[1646735832602,0.01426284,2583.5,2583.4,5.04106487]
[1646735833003,0.01426284,2583.5,2583.4,1.54106487]
[1646735833259,0.01426284,2583.5,2583.4,6.01160644]
[1646735833560,0.01426284,2583.5,2583.4,17.88160644]
[1646735833758,0.0070272,2583.8,2583.6,1.54106487]
[1646735833961,0.03555288,2583.8,2583.7,4.65266487]
[1646735834159,0.03555288,2583.8,2583.6,1.15266487]
[1646735834358,0.03555288,2583.8,2583.6,1.54106487]
[1646735835359,0.03555288,2583.8,2583.7,5.04106487]
[1646735835558,0.03695255,2583.8,2583.7,1.15266487]
[1646735835758,0.03695255,2583.8,2583.7,4.65266487]
[1646735836159,0.01823896,2584.0,2583.8,0.02194745]
[1646735836458,0.04803416,2584.0,2583.8,1.17461232]
[1646735836660,0.04803416,2584.0,2583.8,1.56301232]
[1646735837097,0.04803416,2584.0,2583.9,3.8884]
[1646735837298,0.04803416,2584.0,2583.9,1.15266487]
[1646735838301,0.04803416,2584.0,2583.8,1.15266487]
[1646735838503,0.04803416,2584.0,2583.9,1.15266487]
[1646735838905,0.04658126,2584.0,2583.9,1.15266487]
[1646735839306,0.04658126,2584.0,2583.9,13.41106487]
[1646735839503,0.05124005,2584.0,2583.9,16.91106487]
[1646735839703,0.05124005,2584.0,2583.9,16.90474187]
[1646735840107,0.04658126,2584.0,2583.9,16.90474187]
[1646735840506,0.01912108,2584.1,2584.0,0.0465]
[1646735840755,0.01912108,2584.1,2584.0,16.95124187]
[1646735841356,2.108e-05,2584.1,2584.0,16.95124187]
[1646735841553,0.0097414,2584.6,2584.2,13.40474187]
[1646735841752,0.0097414,2584.6,2584.4,13.40474187]
[1646735841955,0.0097414,2584.6,2584.5,16.90474187]
[1646735842851,0.0097414,2584.6,2584.5,1.14634187]
[1646735843456,0.02492112,2585.3,2584.7,1.14634187]
[1646735843659,7.3091697,2585.5,2585.0,6.64634187]
[1646735843660,0.0182097,2585.5,2585.0,6.64634187]
[1646735843857,0.0182097,2585.5,2585.4,1.53474187]
[1646735844402,0.0182097,2585.5,2585.4,1.14634187]
[1646735845304,0.0103148,2585.6,2585.4,16.90474187]
[1646735845305,0.01496682,2585.6,2585.4,16.90474187]
[1646735845708,0.01496682,2585.6,2585.4,13.40474187]
[1646735845907,0.01496682,2585.6,2585.5,1.14634187]
[1646735846308,0.0103148,2585.6,2585.5,1.14634187]
[1646735846506,0.01496682,2585.6,2585.5,1.14634187]
[1646735847006,0.01496682,2585.6,2585.2,1.14634187]
[1646735847408,0.0103148,2585.6,2585.2,1.14634187]
[1646735848008,0.0103148,2585.6,2585.0,1.14634187]
[1646735848267,0.0103148,2585.6,2585.2,1.14634187]
[1646735848768,0.0046182,2585.4,2585.2,1.14634187]
[1646735849771,0.0103148,2585.6,2585.2,1.14634187]
[1646735850169,0.0046182,2585.4,2585.0,1.14634187]
[1646735850367,0.0046182,2585.4,2585.0,2.11367187]
[1646735850569,0.0046182,2585.4,2585.0,13.98367187]
[1646735850770,0.0046182,2585.4,2585.2,1.14634187]
[1646735851077,0.0103148,2585.6,2585.3,1.14634187]
[1646735851483,1.20588231,2585.6,2585.3,1.14634187]
[1646735851999,3.14151231,2585.6,2585.3,1.14634187]
[1646735852201,3.14151231,2585.6,2585.4,1.14634187]
[1646735852403,5.08159611,2585.6,2585.4,1.14634187]
[1646735853204,0.96776,2585.5,2584.8,1.14634187]
[1646735853811,0.9678,2585.4,2584.8,1.14634187]
[1646735854308,0.9678,2585.4,2585.2,0.09427927]
[1646735855407,0.96776,2585.5,2585.2,0.09427927]
[1646735855669,1.02878484,2585.6,2585.2,0.09427927]
[1646735855852,1.0103148,2585.6,2585.2,0.09427927]
[1646735856051,0.0046182,2585.4,2585.2,0.09427927]
[1646735857057,1.0103148,2585.6,2585.2,0.09427927]
[1646735857257,0.00411299,2585.4,2585.2,0.09427927]
[1646735858259,1.0103148,2585.6,2585.2,0.09427927]
[1646735858459,0.00411299,2585.4,2585.2,0.09427927]
[1646735858660,0.00411299,2585.4,2585.2,1.24062114]
[1646735859396,1.0103148,2585.6,2585.3,0.09347123]
[1646735859597,0.00411299,2585.4,2585.3,0.09347123]
[1646735859797,0.00411299,2585.4,2584.8,1.14357626]
[1646735860008,0.97193299,2585.4,2584.8,1.14357626]
[1646735860209,0.00411299,2585.4,2585.0,1.14357626]
[1646735860603,8.3003148,2585.6,2585.0,1.14357626]
[1646735860802,8.3003148,2585.6,2584.7,1.14357626]
[1646735861002,9.2680448,2585.6,2584.7,1.14357626]
[1646735861402,8.3003148,2585.6,2584.7,1.14357626]
[1646735861602,8.3003148,2585.6,2584.9,1.14357626]
[1646735862604,8.3003148,2585.6,2584.7,1.14357626]
[1646735863657,8.3003148,2585.6,2584.9,1.14357626]
[1646735864457,0.00463097,2585.4,2584.9,1.14357626]
[1646735865060,0.00463097,2585.4,2585.2,0.08258296]
[1646735865461,8.3003148,2585.6,2585.2,0.08258296]
[1646735865661,0.00463097,2585.3,2585.2,0.08258296]
[1646735866263,0.96776,2585.5,2585.2,0.08258296]
[1646735866462,0.94016097,2585.5,2585.2,0.08258296]
[1646735866905,0.00463097,2585.4,2585.2,0.08258296]
[1646735867706,1.90793097,2585.5,2585.2,0.08258296]
[1646735868910,1.9780911,2585.6,2585.2,0.08258296]
[1646735868911,1.0103148,2585.6,2585.2,0.08258296]
[1646735869311,0.00138929,2585.5,2585.2,0.08258296]
[1646735869711,0.00138929,2585.5,2585.4,0.04124389]
[1646735870111,1.0103148,2585.6,2585.4,0.04124389]
[1646735870513,1.01170409,2585.6,2585.4,0.04124389]
[1646735871351,1.0103148,2585.6,2585.4,0.04124389]
[1646735871549,1.0149342,2585.6,2585.4,0.04124389]
[1646735872149,0.0149342,2585.6,2585.4,0.04124389]
[1646735872553,0.0103148,2585.6,2585.4,0.04124389]
[1646735872949,0.01170391,2585.6,2585.4,0.04124389]
[1646735873752,0.0103148,2585.6,2585.4,0.04124389]
[1646735874153,0.01170391,2585.6,2585.4,0.04124389]
[1646735874699,0.01170391,2585.6,2585.5,0.07955517]
[1646735875099,0.0103148,2585.6,2585.5,0.07955517]
[1646735875301,0.01170391,2585.6,2585.5,0.07955517]
[1646735876200,0.0103148,2585.6,2585.5,0.07955517]
[1646735879562,0.0103148,2585.6,2585.5,0.07981311]
[1646735879965,0.9580148,2585.7,2585.5,0.07981311]
[1646735880165,0.9626342,2585.7,2585.5,0.07981311]
[1646735880965,0.9580148,2585.7,2585.5,0.07981311]
[1646735881368,0.96232122,2585.7,2585.5,0.07981311]
[1646735882299,0.9580148,2585.7,2585.5,0.07981311]
[1646735882499,0.96232122,2585.7,2585.5,0.07981311]
[1646735883305,0.03430642,2585.7,2585.5,0.07981311]
[1646735883502,0.03,2585.7,2585.5,0.07981311]
[1646735883703,0.03430642,2585.7,2585.5,0.07981311]
[1646735883914,1.00199642,2585.7,2585.2,1.14357626]
[1646735884115,0.466,2585.6,2585.2,1.14357626]
[1646735884504,0.466,2585.6,2584.3,3.63819997]
[1646735884505,1.96785,2585.3,2584.4,1.14357626]